[Event "*** Titled Tuesday Blitz"]
[Site "Chess.com"]
[Date "2019.07.02"]
[Round "4"]
[White "darsen_sanzhaev"]
[Black "GMKrikor"]
[Result "1/2-1/2"]
[WhiteElo "2650"]
[BlackElo "2725"]
[TimeControl "180+2"]
[EndTime "13:53:05 PDT"]
[Termination "Game drawn by repetition"]

1. d4 {[%clk 0:03:01.9]} 1... Nf6 {[%clk 0:02:58.1]} 2. c4 {[%clk 0:03:02.4]}
2... e6 {[%clk 0:02:56.6]} 3. g3 {[%clk 0:03:01.1]} 3... d5 {[%clk 0:02:36]} 4.
Bg2 {[%clk 0:03:01.9]} 4... Bb4+ {[%clk 0:02:34.2]} 5. Nd2 {[%clk 0:03:02.5]}
5... O-O {[%clk 0:02:34.2]} 6. Nf3 {[%clk 0:03:03.6]} 6... a5 {[%clk 0:02:26.5]}
7. O-O {[%clk 0:03:03.6]} 7... a4 {[%clk 0:02:27.9]} 8. Qc2 {[%clk 0:02:53.4]}
8... Nc6 {[%clk 0:02:23.5]} 9. e3 {[%clk 0:02:49.4]} 9... Bd7 {[%clk 0:02:20.7]}
10. a3 {[%clk 0:02:48]} 10... Bxd2 {[%clk 0:01:50.8]} 11. Bxd2 {[%clk
0:02:49.9]} 11... Na5 {[%clk 0:01:51.7]} 12. Bxa5 {[%clk 0:02:45.4]} 12... Rxa5
{[%clk 0:01:52.5]} 13. Ne5 {[%clk 0:02:44]} 13... c6 {[%clk 0:01:44.3]} 14. Rac1
{[%clk 0:02:27.4]} 14... Ra8 {[%clk 0:01:41]} 15. h3 {[%clk 0:02:05.1]} 15...
Qa5 {[%clk 0:01:35.8]} 16. g4 {[%clk 0:02:00.2]} 16... Rfd8 {[%clk 0:01:36.1]}
17. g5 {[%clk 0:01:45.6]} 17... Ne8 {[%clk 0:01:37]} 18. c5 {[%clk 0:01:46.6]}
18... b6 {[%clk 0:01:15.5]} 19. cxb6 {[%clk 0:01:29.5]} 19... Qxb6 {[%clk
0:01:16.1]} 20. Nxd7 {[%clk 0:01:30]} 20... Rxd7 {[%clk 0:01:17.2]} 21. Qxc6
{[%clk 0:01:31.7]} 21... Qxc6 {[%clk 0:01:05.4]} 22. Rxc6 {[%clk 0:01:33.6]}
22... Nd6 {[%clk 0:01:07.3]} 23. Rfc1 {[%clk 0:01:29.3]} 23... Kf8 {[%clk
0:01:05.7]} 24. Rb6 {[%clk 0:01:15.2]} 24... Ke7 {[%clk 0:01:04.9]} 25. Rcc6
{[%clk 0:00:58.1]} 25... Raa7 {[%clk 0:01:00.3]} 26. Bf1 {[%clk 0:00:55.6]}
26... Ne4 {[%clk 0:00:37.4]} 27. h4 {[%clk 0:00:53.2]} 27... Rdb7 {[%clk
0:00:30.9]} 28. Ba6 {[%clk 0:00:43.2]} 28... Rxb6 {[%clk 0:00:28.1]} 29. Rxb6
{[%clk 0:00:45.1]} 29... Nd6 {[%clk 0:00:27.9]} 30. Kg2 {[%clk 0:00:36.8]} 30...
h6 {[%clk 0:00:25.1]} 31. gxh6 {[%clk 0:00:30.5]} 31... gxh6 {[%clk 0:00:26.2]}
32. Bd3 {[%clk 0:00:32.4]} 32... Kd7 {[%clk 0:00:21.1]} 33. Rb4 {[%clk
0:00:31.1]} 33... f6 {[%clk 0:00:18]} 34. Bc2 {[%clk 0:00:31.9]} 34... Nc4
{[%clk 0:00:17.6]} 35. Bxa4+ {[%clk 0:00:32.8]} 35... Kd6 {[%clk 0:00:16.2]} 36.
Bb5 {[%clk 0:00:29.8]} 36... Nd2 {[%clk 0:00:12.4]} 37. Bd3 {[%clk 0:00:27.7]}
37... Rg7+ {[%clk 0:00:13.3]} 38. Kh3 {[%clk 0:00:20.1]} 38... Nf3 {[%clk
0:00:14.8]} 39. Rb6+ {[%clk 0:00:07.5]} 39... Kc7 {[%clk 0:00:15.7]} 40. Rxe6
{[%clk 0:00:06.9]} 40... Ng1+ {[%clk 0:00:17.2]} 41. Kh2 {[%clk 0:00:08.4]}
41... Nf3+ {[%clk 0:00:19]} 42. Kh3 {[%clk 0:00:10]} 42... Ng1+ {[%clk
0:00:17.1]} 43. Kh2 {[%clk 0:00:11.4]} 43... Nf3+ {[%clk 0:00:19]} 44. Kh3
{[%clk 0:00:13.1]} 1/2-1/2

[Event "*** Titled Tuesday Blitz"]
[Site "Chess.com"]
[Date "2019.07.02"]
[Round "4"]
[White "LarissaSteenbekkers"]
[Black "Bagirova"]
[Result "1/2-1/2"]
[WhiteElo "1990"]
[BlackElo "1911"]
[TimeControl "180+2"]
[EndTime "13:53:06 PDT"]
[Termination "Game drawn by repetition"]

1. e4 {[%clk 0:03:01.9]} 1... c5 {[%clk 0:03:00.3]} 2. Nf3 {[%clk 0:03:00.1]}
2... d6 {[%clk 0:03:01.4]} 3. d4 {[%clk 0:02:58.6]} 3... cxd4 {[%clk 0:03:02.8]}
4. Nxd4 {[%clk 0:03:00]} 4... Nf6 {[%clk 0:03:04.1]} 5. Nc3 {[%clk 0:03:01.1]}
5... a6 {[%clk 0:03:05.5]} 6. h3 {[%clk 0:02:59.5]} 6... e6 {[%clk 0:03:06.6]}
7. g4 {[%clk 0:02:58.8]} 7... Be7 {[%clk 0:03:07.8]} 8. Bg2 {[%clk 0:02:58.3]}
8... Qc7 {[%clk 0:03:07.7]} 9. O-O {[%clk 0:02:57.2]} 9... Nc6 {[%clk
0:03:06.2]} 10. Be3 {[%clk 0:02:55.1]} 10... O-O {[%clk 0:03:05.5]} 11. f4
{[%clk 0:02:54.6]} 11... Bd7 {[%clk 0:03:01.1]} 12. g5 {[%clk 0:02:52.4]} 12...
Ne8 {[%clk 0:03:00.8]} 13. f5 {[%clk 0:02:49.4]} 13... Nxd4 {[%clk 0:02:42.6]}
14. Qxd4 {[%clk 0:02:46.9]} 14... exf5 {[%clk 0:02:13.9]} 15. exf5 {[%clk
0:02:43.8]} 15... Bc6 {[%clk 0:02:12.6]} 16. Nd5 {[%clk 0:02:40.4]} 16... Bxd5
{[%clk 0:02:10.6]} 17. Bxd5 {[%clk 0:02:39.5]} 17... Qxc2 {[%clk 0:01:54.4]} 18.
Rac1 {[%clk 0:02:19.6]} 18... Qe2 {[%clk 0:01:51.7]} 19. g6 {[%clk 0:02:00.6]}
19... Bf6 {[%clk 0:01:38.3]} 20. gxf7+ {[%clk 0:01:55.3]} 20... Kh8 {[%clk
0:01:39.1]} 21. Qf4 {[%clk 0:01:07.2]} 21... Be5 {[%clk 0:01:27.4]} 22. Qf2
{[%clk 0:00:53.6]} 22... Qxf2+ {[%clk 0:00:56.7]} 23. Rxf2 {[%clk 0:00:52.9]}
23... Nf6 {[%clk 0:00:57.9]} 24. Bxb7 {[%clk 0:00:50.5]} 24... Rab8 {[%clk
0:00:54.4]} 25. Rc7 {[%clk 0:00:48]} 25... d5 {[%clk 0:00:48.2]} 26. Re7 {[%clk
0:00:42]} 26... Bd6 {[%clk 0:00:49]} 27. Re6 {[%clk 0:00:39.6]} 27... Rxb7
{[%clk 0:00:39.4]} 28. Rxd6 {[%clk 0:00:39.1]} 28... Ne4 {[%clk 0:00:39.2]} 29.
Rxd5 {[%clk 0:00:34]} 29... Nxf2 {[%clk 0:00:39.9]} 30. Bxf2 {[%clk 0:00:33.6]}
30... Rbxf7 {[%clk 0:00:34.9]} 31. Bd4 {[%clk 0:00:27.5]} 31... Rxf5 {[%clk
0:00:31.5]} 32. Rd6 {[%clk 0:00:28.3]} 32... Rg5+ {[%clk 0:00:27.2]} 33. Kh2
{[%clk 0:00:24]} 33... a5 {[%clk 0:00:28]} 34. h4 {[%clk 0:00:21]} 34... Rg4
{[%clk 0:00:27.3]} 35. Kh3 {[%clk 0:00:19.3]} 35... Rgf4 {[%clk 0:00:27.2]} 36.
h5 {[%clk 0:00:18.7]} 36... Rf3+ {[%clk 0:00:27.4]} 37. Kg4 {[%clk 0:00:18]}
37... R3f4+ {[%clk 0:00:27.4]} 38. Kg3 {[%clk 0:00:17.7]} 38... R4f5 {[%clk
0:00:27.4]} 39. h6 {[%clk 0:00:16.8]} 39... Rf3+ {[%clk 0:00:25.2]} 40. Kg4
{[%clk 0:00:16.5]} 40... R8f4+ {[%clk 0:00:21.4]} 41. Kg5 {[%clk 0:00:16.3]}
41... Rf5+ {[%clk 0:00:22.7]} 42. Kg4 {[%clk 0:00:16.9]} 42... R5f4+ {[%clk
0:00:23.6]} 43. Kg5 {[%clk 0:00:17.4]} 43... Rf5+ {[%clk 0:00:23.7]} 44. Kg4
{[%clk 0:00:18.2]} 44... R5f4+ {[%clk 0:00:24.6]} 1/2-1/2

[Event "*** Titled Tuesday Blitz"]
[Site "Chess.com"]
[Date "2019.07.02"]
[Round "4"]
[White "csati17"]
[Black "Galileo22"]
[Result "0-1"]
[WhiteElo "2514"]
[BlackElo "2376"]
[TimeControl "180+2"]
[EndTime "13:53:07 PDT"]
[Termination "Galileo22 won by checkmate"]

1. c4 {[%clk 0:03:01.9]} 1... e5 {[%clk 0:02:58.6]} 2. g3 {[%clk 0:03:02.9]}
2... Nf6 {[%clk 0:02:58.8]} 3. Bg2 {[%clk 0:03:04.3]} 3... d5 {[%clk 0:03:00.3]}
4. cxd5 {[%clk 0:03:06.2]} 4... Nxd5 {[%clk 0:03:01.8]} 5. Nc3 {[%clk 0:03:08]}
5... Nb6 {[%clk 0:03:02.1]} 6. Nf3 {[%clk 0:03:09.4]} 6... Nc6 {[%clk
0:03:03.3]} 7. O-O {[%clk 0:03:10.2]} 7... Be7 {[%clk 0:03:04.4]} 8. a3 {[%clk
0:03:11.1]} 8... g5 {[%clk 0:03:02.3]} 9. b4 {[%clk 0:03:09.5]} 9... g4 {[%clk
0:03:02.1]} 10. Ne1 {[%clk 0:03:09.9]} 10... h5 {[%clk 0:03:01.9]} 11. Nd3
{[%clk 0:02:43]} 11... h4 {[%clk 0:02:39.7]} 12. b5 {[%clk 0:02:42.9]} 12... Nd4
{[%clk 0:02:34.6]} 13. Nxe5 {[%clk 0:02:35.3]} 13... Qd6 {[%clk 0:02:30.1]} 14.
e3 {[%clk 0:02:18.5]} 14... Qxe5 {[%clk 0:01:58.6]} 15. exd4 {[%clk 0:02:17.5]}
15... Qh5 {[%clk 0:02:00.1]} 16. Re1 {[%clk 0:02:13.3]} 16... hxg3 {[%clk
0:00:43.8]} 17. hxg3 {[%clk 0:02:12.3]} 17... Be6 {[%clk 0:00:37.4]} 18. Bxb7
{[%clk 0:01:36.8]} 18... Rd8 {[%clk 0:00:35.8]} 19. Bg2 {[%clk 0:01:18.5]} 19...
Rxd4 {[%clk 0:00:26.3]} 20. Qe2 {[%clk 0:01:17.6]} 20... Qh2+ {[%clk 0:00:19.5]}
21. Kf1 {[%clk 0:01:17.5]} 21... Bc4 {[%clk 0:00:19.3]} 22. d3 {[%clk
0:00:51.5]} 22... Bxd3 {[%clk 0:00:19.8]} 23. Ra2 {[%clk 0:00:53.2]} 23... Kf8
{[%clk 0:00:17.1]} 24. Be3 {[%clk 0:00:51]} 24... Bxe2+ {[%clk 0:00:17.6]} 25.
Raxe2 {[%clk 0:00:52.9]} 25... Rd6 {[%clk 0:00:12.3]} 26. Bc5 {[%clk 0:00:53.2]}
26... Re6 {[%clk 0:00:09.5]} 27. Bxe7+ {[%clk 0:00:54.1]} 27... Kxe7 {[%clk
0:00:10.5]} 28. Ne4 {[%clk 0:00:43.1]} 28... Qh6 {[%clk 0:00:11]} 29. Rc2 {[%clk
0:00:37.4]} 29... Kf8 {[%clk 0:00:11.5]} 30. Rxc7 {[%clk 0:00:37.8]} 30... Qg6
{[%clk 0:00:12.1]} 31. Rxa7 {[%clk 0:00:31.1]} 31... Kg7 {[%clk 0:00:12.8]} 32.
Ra6 {[%clk 0:00:27.9]} 32... Nc4 {[%clk 0:00:12.4]} 33. Rxe6 {[%clk 0:00:24.3]}
33... Qxe6 {[%clk 0:00:14.3]} 34. a4 {[%clk 0:00:24.4]} 34... Rh2 {[%clk
0:00:12.6]} 35. Kg1 {[%clk 0:00:24.8]} 35... Rh6 {[%clk 0:00:11.7]} 36. Rc1
{[%clk 0:00:24.1]} 36... Ne5 {[%clk 0:00:12]} 37. Nc5 {[%clk 0:00:23]} 37... Qf6
{[%clk 0:00:11.9]} 38. Ne4 {[%clk 0:00:21.9]} 38... Nf3+ {[%clk 0:00:12.3]} 39.
Kf1 {[%clk 0:00:23.5]} 39... Qe6 {[%clk 0:00:13.1]} 40. Nc5 {[%clk 0:00:19.3]}
40... Qd5 {[%clk 0:00:12.7]} 41. a5 {[%clk 0:00:10.6]} 41... Rh2 {[%clk
0:00:11.4]} 42. Bxf3 {[%clk 0:00:08.1]} 42... Qxf3 {[%clk 0:00:10.8]} 43. Rc2
{[%clk 0:00:09.3]} 43... Rh1# {[%clk 0:00:11.4]} 0-1

[Event "*** Titled Tuesday Blitz"]
[Site "Chess.com"]
[Date "2019.07.02"]
[Round "4"]
[White "JustaTrickstar"]
[Black "Andrei_Belozerov"]
[Result "1-0"]
[WhiteElo "2856"]
[BlackElo "2552"]
[TimeControl "180+2"]
[EndTime "13:53:11 PDT"]
[Termination "JustaTrickstar won by resignation"]

1. c4 {[%clk 0:03:01.9]} 1... c6 {[%clk 0:02:51.7]} 2. d4 {[%clk 0:03:02.1]}
2... d5 {[%clk 0:02:52.7]} 3. cxd5 {[%clk 0:03:03.8]} 3... cxd5 {[%clk 0:02:53]}
4. Nc3 {[%clk 0:03:05.4]} 4... Nf6 {[%clk 0:02:53.5]} 5. Bf4 {[%clk 0:03:06.8]}
5... Nc6 {[%clk 0:02:54.5]} 6. e3 {[%clk 0:03:08.2]} 6... Bf5 {[%clk 0:02:54.6]}
7. Nf3 {[%clk 0:02:57.2]} 7... e6 {[%clk 0:02:54.8]} 8. Qb3 {[%clk 0:02:55.8]}
8... Bb4 {[%clk 0:02:54.7]} 9. Bb5 {[%clk 0:02:55.8]} 9... O-O {[%clk 0:02:55]}
10. Bxc6 {[%clk 0:02:54.5]} 10... Bxc3+ {[%clk 0:02:55.8]} 11. Qxc3 {[%clk
0:02:55.7]} 11... Rc8 {[%clk 0:02:56]} 12. Ne5 {[%clk 0:02:56.2]} 12... Ng4
{[%clk 0:02:56.4]} 13. Nxg4 {[%clk 0:02:51.8]} 13... Bxg4 {[%clk 0:02:56.7]} 14.
Qb4 {[%clk 0:02:49.2]} 14... Rxc6 {[%clk 0:02:55.9]} 15. Qxb7 {[%clk 0:02:49.4]}
15... Rc2 {[%clk 0:02:49.9]} 16. O-O {[%clk 0:02:48.9]} 16... Qb6 {[%clk
0:02:32.7]} 17. Qxb6 {[%clk 0:02:28.2]} 17... axb6 {[%clk 0:02:32.4]} 18. Rfc1
{[%clk 0:02:13.6]} 18... Rfc8 {[%clk 0:02:29.6]} 19. Rxc2 {[%clk 0:02:09.8]}
19... Rxc2 {[%clk 0:02:29.5]} 20. b3 {[%clk 0:01:52.2]} 20... h5 {[%clk
0:02:26.9]} 21. h4 {[%clk 0:01:45.9]} 21... f6 {[%clk 0:02:23.1]} 22. Bd6 {[%clk
0:01:39.6]} 22... Kf7 {[%clk 0:02:17]} 23. b4 {[%clk 0:01:38.4]} 23... b5 {[%clk
0:02:16.1]} 24. a4 {[%clk 0:01:39]} 24... bxa4 {[%clk 0:02:15.4]} 25. Rxa4
{[%clk 0:01:40.9]} 25... g5 {[%clk 0:02:13.7]} 26. hxg5 {[%clk 0:01:33.2]} 26...
fxg5 {[%clk 0:02:13.6]} 27. Ra7+ {[%clk 0:01:33.3]} 27... Kg6 {[%clk 0:02:13.4]}
28. Be5 {[%clk 0:01:32]} 28... h4 {[%clk 0:02:06.7]} 29. Rg7+ {[%clk 0:01:29.7]}
29... Kf5 {[%clk 0:02:03.3]} 30. f3 {[%clk 0:01:27]} 30... Bh5 {[%clk
0:02:03.3]} 31. Rg8 {[%clk 0:01:15.6]} 31... g4 {[%clk 0:01:42.8]} 32. Rf8+
{[%clk 0:01:08]} 32... Kg6 {[%clk 0:01:37.5]} 33. Rf6+ {[%clk 0:01:01.8]} 33...
Kh7 {[%clk 0:01:35.9]} 34. fxg4 {[%clk 0:00:55.3]} 34... Bxg4 {[%clk 0:01:36]}
35. Bf4 {[%clk 0:00:54.3]} 35... Bf5 {[%clk 0:01:23.7]} 36. Rh6+ {[%clk
0:00:52.8]} 36... Kg7 {[%clk 0:01:24.3]} 37. Rxh4 {[%clk 0:00:54.3]} 37... Rb2
{[%clk 0:01:23.9]} 38. Bd6 {[%clk 0:00:54.3]} 38... Be4 {[%clk 0:01:23.8]} 39.
Rg4+ {[%clk 0:00:54.7]} 39... Kf6 {[%clk 0:01:25.1]} 40. Kh2 {[%clk 0:00:54.6]}
40... Kf5 {[%clk 0:01:25.9]} 41. Kh3 {[%clk 0:00:53.6]} 41... Bd3 {[%clk
0:01:24.5]} 42. Rf4+ {[%clk 0:00:53.8]} 42... Kg5 {[%clk 0:01:24.9]} 43. Be7+
{[%clk 0:00:54.3]} 43... Kh5 {[%clk 0:01:24.3]} 44. g4+ {[%clk 0:00:54.8]} 44...
Kg6 {[%clk 0:01:24.6]} 45. Rf6+ {[%clk 0:00:55.9]} 45... Kg7 {[%clk 0:01:24.9]}
46. Rxe6 {[%clk 0:00:56.9]} 46... Bf1+ {[%clk 0:01:24.6]} 47. Kg3 {[%clk
0:00:57.4]} 47... Rg2+ {[%clk 0:01:25.7]} 48. Kf4 {[%clk 0:00:58.6]} 48... Be2
{[%clk 0:01:24.4]} 49. Ke5 {[%clk 0:00:54.2]} 49... Rxg4 {[%clk 0:01:24]} 50.
Kxd5 {[%clk 0:00:51.3]} 50... Kf7 {[%clk 0:01:24.9]} 51. Re5 {[%clk 0:00:51.9]}
51... Rg6 {[%clk 0:01:17.5]} 52. Bd6 {[%clk 0:00:50.3]} 52... Bf3+ {[%clk
0:01:14]} 53. e4 {[%clk 0:00:50.5]} 53... Bh1 {[%clk 0:01:10.5]} 54. b5 {[%clk
0:00:51.2]} 54... Rg2 {[%clk 0:01:09.9]} 55. b6 {[%clk 0:00:52.1]} 55... Rb2
{[%clk 0:01:10.1]} 56. Bc5 {[%clk 0:00:52.2]} 56... Kf6 {[%clk 0:01:07.9]} 57.
Re6+ {[%clk 0:00:52.7]} 57... Kf7 {[%clk 0:01:08.5]} 58. Re7+ {[%clk 0:00:54.1]}
58... Kf6 {[%clk 0:01:08.9]} 59. Kd6 {[%clk 0:00:51.7]} 59... Ra2 {[%clk
0:01:03.8]} 60. b7 {[%clk 0:00:48.3]} 60... Rb2 {[%clk 0:01:03.2]} 61. Kc7
{[%clk 0:00:48.6]} 61... Rb5 {[%clk 0:01:02.4]} 62. b8=Q {[%clk 0:00:48]} 62...
Rxb8 {[%clk 0:01:00.8]} 63. Kxb8 {[%clk 0:00:48.5]} 1-0

[Event "*** Titled Tuesday Blitz"]
[Site "Chess.com"]
[Date "2019.07.02"]
[Round "4"]
[White "Mykola-Bortnyk"]
[Black "chessking2151"]
[Result "0-1"]
[WhiteElo "2902"]
[BlackElo "2598"]
[TimeControl "180+2"]
[EndTime "13:53:14 PDT"]
[Termination "chessking2151 won by resignation"]

1. e4 {[%clk 0:03:01.9]} 1... e5 {[%clk 0:03:00.4]} 2. Nf3 {[%clk 0:03:02.9]}
2... Nc6 {[%clk 0:02:56.8]} 3. Bb5 {[%clk 0:03:03.8]} 3... a6 {[%clk 0:02:53.5]}
4. Ba4 {[%clk 0:03:04.7]} 4... Nf6 {[%clk 0:02:54.3]} 5. Qe2 {[%clk 0:03:04.9]}
5... b5 {[%clk 0:02:50.3]} 6. Bb3 {[%clk 0:03:04.1]} 6... Bc5 {[%clk 0:02:44.4]}
7. O-O {[%clk 0:03:04.3]} 7... O-O {[%clk 0:02:44.1]} 8. c3 {[%clk 0:03:05.8]}
8... d6 {[%clk 0:02:43.2]} 9. d3 {[%clk 0:03:05.5]} 9... h6 {[%clk 0:02:40.3]}
10. h3 {[%clk 0:03:05.9]} 10... Bb6 {[%clk 0:02:26.7]} 11. Rd1 {[%clk
0:03:05.3]} 11... Qe7 {[%clk 0:02:02]} 12. Nbd2 {[%clk 0:03:03.3]} 12... Be6
{[%clk 0:01:58.3]} 13. Nf1 {[%clk 0:03:02.9]} 13... Bxb3 {[%clk 0:01:54.4]} 14.
axb3 {[%clk 0:03:04.8]} 14... d5 {[%clk 0:01:45]} 15. Ng3 {[%clk 0:03:01.6]}
15... Rfe8 {[%clk 0:01:41.1]} 16. Nf5 {[%clk 0:03:01.6]} 16... Qe6 {[%clk
0:01:38.8]} 17. b4 {[%clk 0:02:59.8]} 17... a5 {[%clk 0:01:35.5]} 18. bxa5
{[%clk 0:02:56.3]} 18... Nxa5 {[%clk 0:01:34.8]} 19. Bxh6 {[%clk 0:02:49.6]}
19... gxh6 {[%clk 0:01:33.2]} 20. Nxh6+ {[%clk 0:02:51.5]} 20... Kg7 {[%clk
0:01:13.5]} 21. Ng5 {[%clk 0:02:52.6]} 21... Qc6 {[%clk 0:01:13.6]} 22. Nf5+
{[%clk 0:02:46]} 22... Kf8 {[%clk 0:01:12.2]} 23. Qf3 {[%clk 0:02:39.4]} 23...
Nb3 {[%clk 0:00:53.5]} 24. Rxa8 {[%clk 0:02:38.6]} 24... Rxa8 {[%clk 0:00:55.3]}
25. Qg3 {[%clk 0:02:39]} 25... dxe4 {[%clk 0:00:42.4]} 26. Nxe4 {[%clk
0:02:39.9]} 26... Nxe4 {[%clk 0:00:29.9]} 27. Qg7+ {[%clk 0:02:40.5]} 27... Ke8
{[%clk 0:00:30.8]} 28. Qg8+ {[%clk 0:02:41.3]} 28... Kd7 {[%clk 0:00:31.7]} 29.
dxe4+ {[%clk 0:02:42.3]} 29... Nd4 {[%clk 0:00:28]} 30. Qxf7+ {[%clk 0:02:41.9]}
30... Kd8 {[%clk 0:00:26.6]} 31. cxd4 {[%clk 0:02:40.1]} 31... exd4 {[%clk
0:00:24.9]} 32. e5 {[%clk 0:02:18.2]} 32... Qc2 {[%clk 0:00:23.8]} 33. Ne3
{[%clk 0:02:13.3]} 33... Qe4 {[%clk 0:00:21.3]} 34. e6 {[%clk 0:02:04.1]} 34...
Kc8 {[%clk 0:00:22.5]} 35. e7 {[%clk 0:02:02.4]} 35... Kb7 {[%clk 0:00:21.4]}
36. Qd5+ {[%clk 0:02:02.5]} 36... Qxd5 {[%clk 0:00:22.7]} 37. Nxd5 {[%clk
0:02:04.4]} 37... Re8 {[%clk 0:00:22.9]} 38. Re1 {[%clk 0:02:05.9]} 38... Bc5
{[%clk 0:00:23.5]} 39. b4 {[%clk 0:02:05.6]} 39... Bd6 {[%clk 0:00:24.1]} 40.
Re6 {[%clk 0:02:05.7]} 40... Kc6 {[%clk 0:00:24.7]} 41. Nf4 {[%clk 0:01:56.5]}
41... Rxe7 {[%clk 0:00:14.2]} 42. Rxe7 {[%clk 0:01:57.8]} 42... Bxe7 {[%clk
0:00:16.1]} 43. Nd3 {[%clk 0:01:59.6]} 43... Kd5 {[%clk 0:00:15.5]} 44. Kf1
{[%clk 0:02:01.1]} 44... Kc4 {[%clk 0:00:15.5]} 45. Ke2 {[%clk 0:02:02.4]} 45...
Bxb4 {[%clk 0:00:12.6]} 46. h4 {[%clk 0:01:47.7]} 46... Bf8 {[%clk 0:00:12]} 47.
g4 {[%clk 0:01:48.4]} 47... Kc3 {[%clk 0:00:11.9]} 48. f4 {[%clk 0:01:43.9]}
48... Kc2 {[%clk 0:00:11.8]} 49. f5 {[%clk 0:01:43.6]} 49... c5 {[%clk
0:00:12.6]} 50. Ne1+ {[%clk 0:01:44.5]} 50... Kc1 {[%clk 0:00:12.1]} 51. Nd3+
{[%clk 0:01:45.6]} 51... Kc2 {[%clk 0:00:12.8]} 52. f6 {[%clk 0:01:46.1]} 52...
c4 {[%clk 0:00:13.3]} 53. Ne1+ {[%clk 0:01:47.8]} 53... Kc3 {[%clk 0:00:14.5]}
54. g5 {[%clk 0:01:47.5]} 54... d3+ {[%clk 0:00:15]} 55. Kd1 {[%clk 0:01:45.8]}
55... b4 {[%clk 0:00:13.6]} 56. Nf3 {[%clk 0:01:45.6]} 56... b3 {[%clk
0:00:14.8]} 57. Nd2 {[%clk 0:01:47.1]} 57... b2 {[%clk 0:00:13.4]} 58. g6 {[%clk
0:01:46.5]} 58... Bh6 {[%clk 0:00:14.3]} 59. Nb1+ {[%clk 0:01:47.4]} 59... Kd4
{[%clk 0:00:14.4]} 60. Ke1 {[%clk 0:01:37.6]} 60... c3 {[%clk 0:00:11.5]} 61.
Kf2 {[%clk 0:01:31.4]} 61... c2 {[%clk 0:00:11.1]} 62. g7 {[%clk 0:01:33]} 62...
cxb1=Q {[%clk 0:00:11.2]} 63. g8=Q {[%clk 0:01:34.9]} 63... Be3+ {[%clk
0:00:12.6]} 64. Kf3 {[%clk 0:01:32.5]} 64... Qf1+ {[%clk 0:00:13.6]} 0-1

[Event "*** Titled Tuesday Blitz"]
[Site "Chess.com"]
[Date "2019.07.02"]
[Round "4"]
[White "Khanya_Mazibuko"]
[Black "alturas_pacificas"]
[Result "0-1"]
[WhiteElo "2223"]
[BlackElo "2396"]
[TimeControl "180+2"]
[EndTime "13:53:19 PDT"]
[Termination "alturas_pacificas won by resignation"]

1. e4 {[%clk 0:03:00.9]} 1... e5 {[%clk 0:03:00.3]} 2. Nf3 {[%clk 0:03:00.4]}
2... Nf6 {[%clk 0:03:01.3]} 3. Nxe5 {[%clk 0:03:01.2]} 3... d6 {[%clk 0:03:02]}
4. Nf3 {[%clk 0:03:02.4]} 4... Nxe4 {[%clk 0:03:02.8]} 5. Nc3 {[%clk 0:03:04.3]}
5... Nxc3 {[%clk 0:03:03.1]} 6. dxc3 {[%clk 0:03:06.2]} 6... Be7 {[%clk
0:03:04]} 7. Be3 {[%clk 0:03:06.8]} 7... Be6 {[%clk 0:03:02]} 8. Qd2 {[%clk
0:03:08.1]} 8... Nc6 {[%clk 0:03:02.6]} 9. O-O-O {[%clk 0:03:10]} 9... a6 {[%clk
0:03:03.6]} 10. Kb1 {[%clk 0:03:08.3]} 10... h6 {[%clk 0:03:04.3]} 11. h4 {[%clk
0:03:04]} 11... Qd7 {[%clk 0:03:04.4]} 12. h5 {[%clk 0:03:03.7]} 12... O-O-O
{[%clk 0:03:04.3]} 13. Nd4 {[%clk 0:03:02.7]} 13... Bf6 {[%clk 0:02:43.4]} 14.
Nxe6 {[%clk 0:02:54.4]} 14... fxe6 {[%clk 0:02:42.7]} 15. g3 {[%clk 0:02:56.3]}
15... d5 {[%clk 0:02:39.6]} 16. Bh3 {[%clk 0:02:54]} 16... Kb8 {[%clk
0:02:36.5]} 17. Rhe1 {[%clk 0:02:53.3]} 17... Rhe8 {[%clk 0:02:34.4]} 18. f4
{[%clk 0:02:48.2]} 18... Qd6 {[%clk 0:02:31.2]} 19. Bd4 {[%clk 0:02:43.6]} 19...
e5 {[%clk 0:02:01.5]} 20. fxe5 {[%clk 0:02:41.2]} 20... Nxe5 {[%clk 0:01:59.5]}
21. Qf4 {[%clk 0:02:10.4]} 21... c5 {[%clk 0:01:30.2]} 22. Bg1 {[%clk
0:01:55.7]} 22... Nf7 {[%clk 0:01:30.9]} 23. Rxe8 {[%clk 0:00:55.1]} 23... Rxe8
{[%clk 0:01:25.1]} 24. Qxd6+ {[%clk 0:00:53.1]} 24... Nxd6 {[%clk 0:01:25.6]}
25. Bxc5 {[%clk 0:00:54.6]} 25... Ne4 {[%clk 0:01:25.6]} 26. Be3 {[%clk
0:00:50]} 26... Nxg3 {[%clk 0:01:12.5]} 27. Bf4+ {[%clk 0:00:44.6]} 27... Be5
{[%clk 0:01:13.3]} 28. Re1 {[%clk 0:00:45.4]} 28... Ne4 {[%clk 0:01:13.8]} 29.
Bxe5+ {[%clk 0:00:35.9]} 29... Rxe5 {[%clk 0:01:14.4]} 30. Kc1 {[%clk 0:00:27]}
30... Rxh5 {[%clk 0:01:14.4]} 31. Be6 {[%clk 0:00:27.1]} 31... Re5 {[%clk
0:01:09.3]} 32. Bxd5 {[%clk 0:00:27.3]} 32... Rxd5 {[%clk 0:01:09.9]} 33. Rxe4
{[%clk 0:00:28.3]} 33... Rg5 {[%clk 0:01:10.2]} 34. Kd2 {[%clk 0:00:25.2]} 34...
Rg2+ {[%clk 0:01:10.8]} 35. Kd3 {[%clk 0:00:26.1]} 35... h5 {[%clk 0:01:08.7]}
36. c4 {[%clk 0:00:23.5]} 36... g5 {[%clk 0:01:08.8]} 37. Re8+ {[%clk
0:00:22.8]} 37... Ka7 {[%clk 0:01:08.2]} 38. Rh8 {[%clk 0:00:24.7]} 38... h4
{[%clk 0:01:09.1]} 39. c5 {[%clk 0:00:24.9]} 39... Rg3+ {[%clk 0:01:09.1]} 40.
Kc4 {[%clk 0:00:25.7]} 40... h3 {[%clk 0:01:09.7]} 41. Rh7 {[%clk 0:00:24.4]}
41... g4 {[%clk 0:01:03.3]} 42. c6 {[%clk 0:00:23.9]} 42... Rg2 {[%clk
0:00:58.5]} 43. Rxb7+ {[%clk 0:00:20]} 43... Ka8 {[%clk 0:00:59.2]} 44. c3
{[%clk 0:00:21.2]} 44... h2 {[%clk 0:00:56.9]} 45. Rh7 {[%clk 0:00:22.1]} 45...
g3 {[%clk 0:00:55.5]} 46. b4 {[%clk 0:00:21.8]} 46... Rg1 {[%clk 0:00:51.1]} 47.
c7 {[%clk 0:00:20.2]} 47... Kb7 {[%clk 0:00:51]} 0-1